lending/lending_fUSD_20260110
["ID","MTS","AMOUNT","RATE_DAILY","PERIOD"]
[401248200,1768072240710,-150.0,0.000162,2]
[401248202,1768072240719,-150.0,0.000162,2]
[401248204,1768072240728,-150.0,0.000162,2]
[401248205,1768072240737,-150.0,0.000162,2]
[401248207,1768072240746,-150.0,0.000162,2]
[401248210,1768072240756,-150.0,0.000162,2]
[401248212,1768072240766,-150.0,0.000162,2]
[401248214,1768072240775,-150.0,0.000162,2]
[401248216,1768072240785,-150.0,0.000162,2]
[401248217,1768072240794,-150.0,0.000162,2]
[401248220,1768072240803,-150.0,0.000162,2]
[401248221,1768072240812,-195.53,0.00016214,2]
[401248224,1768072240821,-3454.28959901,0.0001623,2]
[401248225,1768072240831,-9338.7,0.00016257,2]
[401248228,1768072240840,-150.0,0.00016262,2]
[401248230,1768072240849,-150.0,0.00016267,2]
[401248231,1768072240858,-150.0,0.00016278,2]
[401248233,1768072240867,-150.0,0.00016286,2]
[401248236,1768072240876,-150.0,0.00016306,2]
[401248238,1768072240885,-150.0,0.00016312,2]
[401248240,1768072240895,-150.0,0.00016324,2]
[401248242,1768072240904,-150.0,0.00016333,2]
[401248244,1768072240912,-150.0,0.00016357,2]
[401248246,1768072240921,-150.0,0.00016371,2]
[401248248,1768072240931,-150.0,0.00016386,2]
[401248250,1768072240940,-150.0,0.000164,2]
[401248252,1768072240949,-150.0,0.00016412,2]
[401248254,1768072240957,-806.6,0.00016424,2]
[401248255,1768072240966,-150.0,0.00016425,2]
[401248257,1768072240975,-150.0,0.00016435,2]
[401248259,1768072240984,-500.0,0.00016438,2]
[401248261,1768072240993,-398.68305945,0.00016438,2]
[401248264,1768072241003,-150.0,0.00016448,2]
[401248265,1768072241012,-150.0,0.00016457,2]
[401248268,1768072241022,-150.0,0.00016467,2]
[401248270,1768072241031,-1428.32031009,0.00016498,2]
[401248271,1768072241040,-150.0,0.000165,2]
[401248273,1768072241049,-150.0,0.000165,2]
[401248275,1768072241058,-3454.28959901,0.00016508,2]
[401248277,1768072241068,-150.0,0.0001651,2]
[401248279,1768072241077,-150.0,0.00016513,2]
[401248281,1768072241086,-150.0,0.00016518,2]
[401248283,1768072241095,-150.0,0.00016533,2]
[401248285,1768072241104,-150.0,0.00016537,2]
[401248287,1768072241114,-150.0,0.00016543,2]
[401248289,1768072241124,-150.0,0.00016572,2]
[401248291,1768072241133,-150.0,0.00016591,2]
[401248293,1768072241142,-150.0,0.000166,2]
[401248295,1768072241151,-150.0,0.00016624,2]
[401248297,1768072241160,-360.0,0.00016624,2]
[401248299,1768072241169,-150.0,0.00016629,2]
[401248302,1768072241179,-150.0,0.00016634,2]
[401248304,1768072241189,-150.0,0.0001665,2]
[401248305,1768072241198,-150.0,0.00016667,2]
[401248308,1768072241207,-150.0,0.0001667,2]
[401248310,1768072241217,-150.0,0.00016697,2]
[401248311,1768072241226,-806.6,0.00016698,2]
[401248313,1768072241235,-150.0,0.00016714,2]
[401248315,1768072241244,-150.0,0.00016729,2]
[401248318,1768072241254,-150.0,0.00016733,2]
[401248320,1768072241265,-150.0,0.00016748,2]
[401248322,1768072241274,-150.0,0.00016759,2]
[401248324,1768072241283,-231.40282924,0.00016761,2]
[401248326,1768072241292,-1899.23071139,0.00016761,2]
[401248327,1768072241301,-233.67326927,0.00016761,2]
[401248330,1768072241311,-150.0,0.00016762,2]
[401248331,1768072241320,-3454.28959901,0.00016787,2]
[401248333,1768072241330,-150.0,0.000168,2]
[401248335,1768072241339,-150.0,0.000168,2]
[401248337,1768072241348,-150.0,0.000168,2]
[401248339,1768072241358,-150.0,0.000168,2]
[401248341,1768072241367,-150.0,0.000168,2]
[401248343,1768072241377,-150.0,0.00016821,2]
[401248345,1768072241389,-150.0,0.00016826,2]
[401248347,1768072241399,-3360.62032107,0.00016835,2]
[401248349,1768072241409,-150.0,0.00016835,2]
[401248351,1768072241418,-150.0,0.00016867,2]
[401248353,1768072241430,-150.0,0.00016875,2]
[401248355,1768072241439,-150.0,0.00016883,2]
[401248357,1768072241448,-150.0,0.00016886,2]
[401248359,1768072241458,-1452.78,0.00016892,2]
[401248361,1768072241467,-150.0,0.00016904,2]
[401248363,1768072241477,-1631.0,0.00016926,2]
[401248365,1768072241486,-150.0,0.00016933,2]
[401248367,1768072241495,-300.0,0.00016933,2]
[401248369,1768072241504,-250.0,0.00016935,2]
[401248371,1768072241513,-150.0,0.00016941,2]
[401248373,1768072241523,-195.0,0.00016944,2]
[401248375,1768072241532,-250.0,0.00016944,2]
[401248377,1768072241541,-250.0,0.00016944,2]
[401248379,1768072241550,-150.0,0.00016945,2]
[401248381,1768072241559,-150.0,0.00016971,2]
[401248383,1768072241568,-806.62209656,0.00016972,2]
[401248385,1768072241577,-150.0,0.00016983,2]
[401248387,1768072241586,-193751.04,0.00016986,2]
[401248389,1768072241595,-150.0,0.00016987,2]
[401248391,1768072241604,-150.0,0.00017,2]
[401248393,1768072241612,-150.0,0.00017007,2]
[401248395,1768072241622,-150.0,0.00017047,2]
[401248397,1768072241631,-150.0,0.00017057,2]
[401248399,1768072241640,-150.0,0.00017061,2]
[401248401,1768072241649,-3454.28959901,0.00017065,2]
[401248403,1768072241658,-150.0,0.00017067,2]
[401248405,1768072241667,-150.0,0.00017069,2]
[401248407,1768072241676,-150.0,0.000171,2]
[401248409,1768072241686,-150.0,0.000171,2]
[401248411,1768072241698,-150.0,0.000171,2]
[401248413,1768072241708,-3360.62032107,0.00017101,2]
[401248415,1768072241717,-150.0,0.00017131,2]
[401248417,1768072241726,-150.0,0.00017133,2]
[401248419,1768072241736,-150.0,0.00017139,2]
[401248421,1768072241746,-150.0,0.00017143,2]
[401248423,1768072241756,-150.0,0.00017153,2]
[401248425,1768072241765,-150.0,0.00017193,2]
[401248427,1768072241774,-150.0,0.000172,2]
[401248429,1768072241783,-150.0,0.00017212,2]
[401248432,1768072241792,-150.0,0.00017217,2]
[401248434,1768072241801,-150.0,0.00017229,2]
[401248436,1768072241810,-166.66,0.00017232,2]
[401248437,1768072241819,-150.0,0.00017255,2]
[401248439,1768072241828,-150.0,0.00017259,2]
[401248441,1768072241837,-150.0,0.00017267,2]
[401248444,1768072241847,-150.0,0.00017296,2]
[401248445,1768072241856,-150.0,0.00017314,2]
[401248447,1768072241865,-150.0,0.00017317,2]
[401248449,1768072241874,-150.0,0.00017325,2]
[401248451,1768072241883,-150.0,0.00017333,2]
[401248453,1768072241892,-3454.28959901,0.00017343,2]
[401248455,1768072241902,-150.0,0.00017365,2]
[401248458,1768072241911,-3360.62032107,0.00017368,2]
[401248459,1768072241921,-150.0,0.00017374,2]
[401248461,1768072241929,-150.0,0.00017379,2]
[401248463,1768072241938,-150.0,0.000174,2]
[401248465,1768072241947,-150.0,0.000174,2]
[401248467,1768072241956,-150.0,0.000174,2]
[401248469,1768072241965,-150.0,0.000174,2]
[401248471,1768072241974,-150.0,0.000174,2]
[401248473,1768072241983,-150.0,0.00017437,2]
[401248475,1768072241992,-150.0,0.00017441,2]
[401248477,1768072242001,-159.16121496,0.00017448,2]
[401248479,1768072242010,-150.0,0.00017452,2]
[401248481,1768072242019,-150.0,0.00017467,2]
[401248483,1768072242028,-150.0,0.00017471,2]
[401248485,1768072242038,-150.0,0.00017486,2]
[401248488,1768072242047,-2000.0,0.000175,2]
[401248489,1768072242056,-150.0,0.00017503,2]
[401248491,1768072242065,-150.0,0.0001753,2]
[401248493,1768072242074,-150.0,0.00017533,2]
[401248495,1768072242083,-500.0,0.0001754,2]
[401248497,1768072242092,-150.0,0.00017541,2]
[401248499,1768072242101,-150.0,0.00017541,2]
[401248501,1768072242110,-150.0,0.00017541,2]
[401248503,1768072242119,-150.0,0.00017541,2]
[401248505,1768072242128,-150.0,0.00017541,2]
[401248507,1768072242137,-150.0,0.00017541,2]
[401248509,1768072242146,-150.0,0.00017541,2]
[401248511,1768072242155,-1405.0,0.00017541,2]
[401248513,1768072242166,-1330.0,0.00017541,2]
[401248515,1768072242175,-3468.0,0.00017541,2]
[401248517,1768072242184,-614.0,0.00017541,2]
[401248519,1768072242193,-505.0,0.00017541,2]
[401248521,1768072242202,-1266.0,0.00017541,2]
[401248523,1768072242211,-1201.0,0.00017541,2]
[401248525,1768072242220,-914.0,0.00017541,2]
[401248527,1768072242229,-2437.0,0.00017541,2]
[401248529,1768072242239,-4820.0,0.00017541,2]
[401248531,1768072242250,-566.0,0.00017541,2]
[401248534,1768072242259,-150.0,0.0001755,2]
[401248536,1768072242268,-150.0,0.00017566,2]
[401248537,1768072242277,-150.0,0.00017571,2]
[401248540,1768072242287,-150.0,0.00017576,2]
[401248542,1768072242296,-150.0,0.000176,2]
[401248544,1768072242305,-150.0,0.00017609,2]
[401248546,1768072242314,-3454.28959901,0.00017622,2]
[401248548,1768072242323,-150.0,0.00017628,2]
[401248550,1768072242332,-346.85,0.00017629,2]
[401248552,1768072242341,-1000.0,0.00017629,2]
[401248554,1768072242350,-3360.62032107,0.00017634,2]
[401248556,1768072242360,-150.0,0.00017657,2]
[401248557,1768072242369,-150.0,0.00017662,2]
[401248559,1768072242381,-150.0,0.00017667,2]
[401248561,1768072242390,-171.45,0.0001768,2]
[401248563,1768072242399,-150.0,0.00017682,2]
[401248565,1768072242408,-150.0,0.00017687,2]
[401248567,1768072242418,-150.0,0.0001769,2]
[401248569,1768072242427,-150.0,0.000177,2]
[401248571,1768072242436,-150.0,0.000177,2]
[401248573,1768072242445,-500.0,0.00017722,2]
[401248575,1768072242454,-1000.0,0.00017722,2]
[401248577,1768072242464,-151.0,0.00017722,2]
[401248579,1768072242473,-533.88981491,0.00017722,2]
[401248581,1768072242482,-998.0,0.00017722,2]
[401248583,1768072242491,-250.0,0.00017722,2]
[401248585,1768072242500,-500.0,0.00017722,2]
[401248587,1768072242510,-250.0,0.00017722,2]
[401248589,1768072242519,-2000.0,0.00017722,2]
[401248591,1768072242528,-250.0,0.00017722,2]
[401248592,1768072242537,-150.0,0.00017733,2]
[401248594,1768072242547,-150.0,0.00017743,2]
[401248596,1768072242556,-150.0,0.00017752,2]
[401248598,1768072242565,-150.0,0.00017765,2]
[401248601,1768072242575,-150.0,0.00017775,2]
[401248602,1768072242584,-150.0,0.00017788,2]
[401248604,1768072242594,-150.0,0.000178,2]
[401248606,1768072242604,-150.0,0.00017814,2]
[401248608,1768072242613,-150.0,0.00017829,2]
[401248611,1768072242624,-150.0,0.00017843,2]
[401248612,1768072242632,-236.44,0.00017866,2]
[401248614,1768072242642,-150.0,0.00017867,2]
[401248617,1768072242651,-150.0,0.00017876,2]
[401248619,1768072242660,-10000.0,0.00017882,2]
[401248620,1768072242669,-288.65855605,0.00017882,2]
[401248622,1768072242679,-288.65855605,0.00017882,2]
[401248624,1768072242687,-150.0,0.00017887,2]
[401248627,1768072242697,-150.0,0.00017894,2]
[401248629,1768072242706,-204.1832064,0.00017899,2]
[401248630,1768072242715,-3360.62032107,0.000179,2]
[401248632,1768072242724,-224.30464682,0.000179,2]
[401248634,1768072242732,-179.69793141,0.000179,3]
[401248636,1768072242742,-485.15734551,0.000179,2]
[401248638,1768072242751,-3454.28959901,0.000179,2]
[401248663,1768072242961,-150.0,0.00017914,2]
[401248665,1768072242976,-150.0,0.00017922,2]
[401248668,1768072242991,-150.0,0.00017933,2]
[401248670,1768072243001,-150.0,0.00017938,2]
[401248672,1768072243012,-500.0,0.00017973,2]
[401248674,1768072243022,-500.0,0.00017973,2]
[401248676,1768072243032,-500.0,0.00017973,2]
[401248678,1768072243043,-380.05360747,0.00017973,2]
[401248679,1768072243053,-500.0,0.00017973,2]
[401248681,1768072243063,-500.0,0.00017973,2]
[401248684,1768072243073,-500.0,0.00017973,2]
[401248685,1768072243082,-500.0,0.00017973,2]
[401248689,1768072243091,-500.0,0.00017973,2]
[401248691,1768072243101,-500.0,0.00017973,2]
[401248693,1768072243110,-500.0,0.00017973,2]
[401248695,1768072243119,-500.0,0.00017973,2]
[401248697,1768072243128,-500.0,0.00017973,2]
[401248699,1768072243137,-500.0,0.00017973,2]
[401248700,1768072243146,-500.0,0.00017973,2]
[401248702,1768072243155,-500.0,0.00017973,2]
[401248704,1768072243164,-500.0,0.00017973,2]
[401248706,1768072243173,-500.0,0.00017973,2]
[401248709,1768072243183,-500.0,0.00017973,2]
[401248710,1768072243193,-500.0,0.00017973,2]
[401248713,1768072243203,-500.0,0.00017973,2]
[401248714,1768072243212,-500.0,0.00017973,2]
[401248717,1768072243222,-500.0,0.00017973,2]
[401248719,1768072243231,-500.0,0.00017973,2]
[401248721,1768072243240,-632.76984978,0.00017973,2]
[401248723,1768072243249,-500.0,0.00017973,2]
[401248724,1768072243258,-500.0,0.00017973,2]
[401248726,1768072243268,-500.0,0.00017973,2]
[401248729,1768072243278,-171.83605725,0.00017973,2]
[401248731,1768072243287,-500.0,0.00017973,2]
[401248733,1768072243297,-500.0,0.00017973,2]
[401248735,1768072243306,-183.2165965,0.00017973,2]
[401248737,1768072243316,-500.0,0.00017973,2]
[401248739,1768072243326,-500.0,0.00017973,2]
[401248741,1768072243335,-200.0,0.00017973,2]
[401248743,1768072243344,-1428.32031009,0.0001799,2]
[401248745,1768072243353,-1428.32031009,0.0001799,2]
[401248747,1768072243362,-1428.6396534,0.00017995,2]
[401248749,1768072243372,-2142.9594801,0.00017995,2]
[401248751,1768072243383,-297027.6135467,0.00017995,2]
[401248753,1768072243392,-500.0,0.00017999,2]
[401248755,1768072243402,-500.0,0.00017999,2]
[401248757,1768072243411,-500.0,0.00017999,2]
[401248759,1768072243420,-506.38314442,0.00017999,2]
[401248761,1768072243430,-300.0,0.00017999,2]
[401248762,1768072243440,-300.0,0.00017999,2]
[401248763,1768072243449,-300.0,0.00017999,2]
[401248764,1768072243460,-196.21798024,0.00018,2]
[401248765,1768072243470,-151.06129179,0.00018,2]
[401248766,1768072243480,-286.04821059,0.00018,2]
[401248767,1768072243489,-154.34791437,0.00018,2]
[401248768,1768072243499,-223.10788253,0.00018,2]
[401248769,1768072243509,-244.97032636,0.00018,2]
[401248770,1768072243519,-156.68286018,0.00018,2]
[401248771,1768072243528,-236.87153921,0.00018,2]
[401248772,1768072243538,-216.79771002,0.00018,2]
[401248774,1768072243548,-178.17676299,0.00018,2]
[401248776,1768072243557,-150.0,0.00018,2]
[401248778,1768072243566,-247.12115074,0.00018,2]
[401248780,1768072243575,-378487.51621828,0.00018,2]
[401248782,1768072243584,-111585.87503571,0.00018,2]
[401248784,1768072243593,-2635332.61676143,0.00018,2]
[401248808,1768072243795,-335.7,0.00018,2]
[401248810,1768072243806,-1288.95483898,0.00018,2]
[401248812,1768072243817,-2630.64669746,0.00018,2]
[401248829,1768072243966,-1715.1,0.00017541,2]
[401248836,1768072244024,-4838.9,0.00017541,2]
[401248838,1768072244034,-1207433.20152008,0.00018,2]
[401248841,1768072244043,-1100.28522711,0.00018,2]
[401248843,1768072244054,-2902.28,0.00018,7]
[401248845,1768072244063,-24752.3011289,0.00018,2]
[401248847,1768072244072,-714.3198268,0.00018,2]
[401248848,1768072244080,-151.0,0.00018,2]
[401248851,1768072244090,-151.0,0.00018,2]
[401248852,1768072244099,-278.895801,0.00018,2]
[401248855,1768072244109,-278.895801,0.00018,2]
[401248856,1768072244119,-278.895801,0.00018,2]
[401248858,1768072244128,-278.895801,0.00018,2]
[401248860,1768072244138,-151.0,0.00018,2]
[401248863,1768072244147,-151.0,0.00018,2]
[401248865,1768072244157,-151.0,0.00018,2]
[401248866,1768072244167,-151.0,0.00018,2]
[401248868,1768072244176,-187.476831,0.00018,2]
[401248870,1768072244186,-165.313062,0.00018,2]
[401248872,1768072244195,-151.0,0.00018,2]
[401248874,1768072244206,-151.0,0.00018,2]
[401248876,1768072244216,-151.0,0.00018,2]
[401248878,1768072244225,-333.724001,0.00018,2]
[401248880,1768072244234,-333.724001,0.00018,2]
[401248882,1768072244243,-333.724001,0.00018,2]
[401248884,1768072244253,-333.724001,0.00018,2]
[401248887,1768072244263,-151.0,0.00018,2]
[401248888,1768072244273,-151.0,0.00018,2]
[401248891,1768072244282,-151.0,0.00018,2]
[401248892,1768072244291,-151.0,0.00018,2]
[401248894,1768072244300,-151.0,0.00018,2]
[401248896,1768072244310,-151.0,0.00018,2]
[401248898,1768072244319,-151.0,0.00018,2]
[401248900,1768072244328,-151.0,0.00018,2]
[401248902,1768072244338,-151.0,0.00018,2]
[401248904,1768072244347,-253.531794,0.00018,2]
[401248906,1768072244356,-151.0,0.00018,2]
[401248908,1768072244365,-151.0,0.00018,2]
[401248910,1768072244374,-151.0,0.00018,2]
[401248912,1768072244387,-151.0,0.00018,2]
[401248914,1768072244397,-151.0,0.00018,2]
[401248916,1768072244407,-151.0,0.00018,2]
[401248918,1768072244416,-151.0,0.00018,2]
[401248920,1768072244425,-174.325846,0.00018,2]
[401248922,1768072244434,-151.0,0.00018,2]
[401248924,1768072244443,-151.0,0.00018,2]
[401248926,1768072244452,-151.0,0.00018,2]
[401248928,1768072244461,-151.0,0.00018,2]
[401248930,1768072244470,-151.0,0.00018,2]
[401248932,1768072244479,-151.0,0.00018,2]
[401248934,1768072244488,-151.0,0.00018,2]
[401248936,1768072244499,-151.0,0.00018,2]
[401248938,1768072244508,-151.0,0.00018,2]
[401248940,1768072244516,-151.0,0.00018,2]
[401248942,1768072244526,-151.0,0.00018,2]
[401248944,1768072244534,-170.636736,0.00018,2]
[401248946,1768072244543,-170.636736,0.00018,2]
[401248948,1768072244552,-170.636736,0.00018,2]
[401248950,1768072244561,-170.636736,0.00018,2]
[401248952,1768072244571,-201.67872,0.00018,2]
[401248954,1768072244581,-200.0,0.00018,2]
[401248955,1768072244589,-151.0,0.00018,2]
[401248957,1768072244598,-152.347122,0.00018,2]
[401248959,1768072244606,-423.418417,0.00018,2]
[401248961,1768072244615,-423.418417,0.00018,2]
[401248963,1768072244626,-155.538098,0.00018,2]
[401248966,1768072244635,-423.418417,0.00018,2]
[401248967,1768072244644,-423.418417,0.00018,2]
[401248969,1768072244653,-151.0,0.00018,2]
[401248971,1768072244663,-151.0,0.00018,2]
[401248973,1768072244672,-151.0,0.00018,2]
[401248976,1768072244682,-213.051367,0.00018,2]
[401248977,1768072244691,-1036.715943,0.00018,2]
[401248979,1768072244700,-1036.715943,0.00018,2]
[401248982,1768072244709,-1036.715943,0.00018,2]
[401248984,1768072244719,-1036.715943,0.00018,2]
[401248986,1768072244728,-151.0,0.00018,2]
[401248988,1768072244737,-151.0,0.00018,2]
[401248990,1768072244747,-164.963225,0.00018,2]
[401248992,1768072244755,-156.787562,0.00018,2]
[401248993,1768072244765,-151.0,0.00018,2]
[401248996,1768072244774,-151.0,0.00018,2]
[401248998,1768072244786,-151.0,0.00018,2]
[401249000,1768072244795,-161.562188,0.00018,2]
[401249002,1768072244805,-856.316536,0.00018,2]
[401249004,1768072244815,-599.259663,0.00018,2]
[401249006,1768072244825,-856.316536,0.00018,2]
[401249008,1768072244834,-599.259663,0.00018,2]
[401249010,1768072244843,-856.316536,0.00018,2]
[401249012,1768072244853,-599.259663,0.00018,2]
[401249014,1768072244863,-206.489115,0.00018,2]
[401249016,1768072244872,-856.316536,0.00018,2]
[401249018,1768072244881,-599.259663,0.00018,2]
[401249020,1768072244890,-206.489115,0.00018,2]
[401249022,1768072244900,-206.489115,0.00018,2]
[401249024,1768072244908,-206.489115,0.00018,2]
[401249026,1768072244917,-151.0,0.00018,2]
[401249028,1768072244927,-251.032775,0.00018,2]
[401249030,1768072244936,-151.0,0.00018,2]
[401249032,1768072244946,-251.032775,0.00018,2]
[401249034,1768072244955,-168.0,0.00018026,2]
[401249036,1768072244964,-166.67,0.00018029,2]
[401249038,1768072244973,-1035.48,0.00018072,2]
[401249040,1768072244983,-4198.81969622,0.00018078,2]
[401249042,1768072244992,-150.0,0.00018082,2]
[401249044,1768072245001,-150.0,0.00018082,2]
[401249046,1768072245011,-159.48620506,0.00018082,2]
[401249048,1768072245020,-150.0,0.00018082,2]
[401249050,1768072245030,-150.0,0.00018082,2]
[401249052,1768072245040,-150.0,0.00018082,2]
[401249054,1768072245049,-150.47221411,0.00018082,2]
[401249056,1768072245058,-150.0,0.00018082,2]
[401249058,1768072245067,-150.0,0.00018082,2]
[401249060,1768072245077,-154.63310994,0.00018082,2]
[401249062,1768072245087,-150.0,0.00018082,2]
[401249064,1768072245096,-150.0,0.00018082,2]
[401249066,1768072245106,-500.0,0.00018082,2]
[401249068,1768072245115,-150.0,0.00018082,2]
[401249070,1768072245124,-500.0,0.00018082,2]
[401249072,1768072245134,-150.0,0.00018082,2]
[401249074,1768072245143,-150.0,0.00018082,2]
[401249076,1768072245152,-150.0,0.00018082,2]
[401249078,1768072245161,-1776.21806083,0.000181,2]
[401249080,1768072245171,-150.0,0.00018137,2]
[401249082,1768072245180,-150.0,0.00018137,2]
[401249084,1768072245189,-150.0,0.00018137,2]
[401249086,1768072245199,-500.0,0.00018137,2]
[401249089,1768072245209,-500.0,0.00018137,2]
[401249091,1768072245219,-150.0,0.00018137,2]
[401249093,1768072245228,-150.0,0.00018137,2]
[401249095,1768072245238,-168.0,0.00018163,2]
[401249097,1768072245247,-200.0,0.00018192,2]
[401249099,1768072245256,-150.0,0.00018192,2]
[401249101,1768072245266,-150.0,0.00018192,2]
[401249103,1768072245275,-500.0,0.00018192,2]
[401249105,1768072245284,-339.41796982,0.00018192,2]
[401249107,1768072245293,-150.0,0.00018192,2]
[401249109,1768072245302,-150.0,0.00018192,2]
[401249111,1768072245312,-232.10117033,0.00018246,2]
[401249113,1768072245321,-194.13148969,0.00018246,2]
[401249115,1768072245331,-500.0,0.00018246,2]
[401249117,1768072245339,-200.0,0.00018246,2]
[401249119,1768072245349,-200.0,0.00018246,2]
[401249121,1768072245358,-553.64373807,0.0001827,2]
[401249123,1768072245367,-500.0,0.00018301,2]
[401249125,1768072245377,-500.0,0.00018356,2]
[401249127,1768072245391,-964.38,0.00018356,2]
[401249129,1768072245401,-500.0,0.00018411,2]
[401249131,1768072245410,-168.0,0.00018456,2]
[401249133,1768072245420,-500.0,0.00018466,2]
[401249135,1768072245431,-500.0,0.0001852,2]
[401249137,1768072245440,-1000.0,0.00018521,2]
[401249139,1768072245450,-1000.0,0.00018521,2]
[401249141,1768072245461,-1000.0,0.00018521,2]
[401249143,1768072245470,-179.69932653,0.00018521,2]
[401249145,1768072245479,-1000.0,0.00018521,2]
[401249147,1768072245489,-166.66,0.00018545,2]
[401249149,1768072245498,-1035.48,0.00018551,2]
[401249150,1768072245507,-485.15734549,0.00018552,2]
[401249153,1768072245517,-4232.0,0.00018567,2]
[401249155,1768072245527,-500.0,0.00018575,2]
[401249157,1768072245537,-500.0,0.0001863,2]
[401249159,1768072245545,-168.0,0.0001863,2]
[401249160,1768072245554,-195.53,0.00018646,2]
[401249162,1768072245563,-500.0,0.00018685,2]
[401249164,1768072245572,-168.0,0.00018733,2]
[401249166,1768072245581,-500.0,0.0001874,2]
[401249168,1768072245591,-500.0,0.00018794,2]
[401249171,1768072245601,-1000.0,0.000188,2]
[401249172,1768072245611,-151.17,0.000188,2]
[401249174,1768072245620,-151.17,0.000188,2]
[401249176,1768072245630,-151.17,0.000188,2]
[401249178,1768072245640,-151.17,0.000188,2]
[401249181,1768072245650,-151.17,0.000188,2]
[401249182,1768072245659,-151.17,0.000188,2]
[401249184,1768072245670,-151.17,0.000188,2]
[401249187,1768072245679,-151.17,0.000188,2]
[401249188,1768072245688,-151.17,0.000188,2]
[401249191,1768072245697,-151.17,0.000188,2]
[401249193,1768072245706,-151.17,0.000188,2]
[401249194,1768072245716,-151.17,0.000188,2]
[401249197,1768072245725,-151.17,0.000188,2]
[401249198,1768072245734,-151.17,0.000188,2]
[401249201,1768072245744,-151.17,0.000188,2]
[401249203,1768072245753,-151.17,0.000188,2]
[401249205,1768072245762,-151.17,0.000188,2]
[401249207,1768072245772,-151.17,0.000188,2]
[401249209,1768072245781,-151.17,0.000188,2]
[401249211,1768072245791,-151.17,0.000188,2]
[401249213,1768072245800,-151.17,0.000188,2]
[401249215,1768072245809,-151.17,0.000188,2]
[401249217,1768072245819,-151.17,0.000188,2]
[401249218,1768072245828,-151.17,0.000188,2]
[401249221,1768072245838,-574.12855637,0.00018818,2]
[401249223,1768072245847,-2000.0,0.00018848,2]
[401249224,1768072245856,-200.0,0.00018848,2]
[401249226,1768072245865,-500.0,0.00018849,2]
[401249229,1768072245875,-161.78022297,0.000189,2]
[401249230,1768072245884,-500.0,0.00018904,2]
[401249233,1768072245894,-166.67,0.0001897,2]
[401249235,1768072245903,-520.62893345,0.00019,2]
[401249237,1768072245912,-300.0,0.00019,2]
[401249239,1768072245921,-1533.44962892,0.00019,2]
[401249240,1768072245930,-65563.23505573,0.00019,2]
[401249243,1768072245940,-500.0,0.00019,5]
[401249245,1768072245949,-531.21135139,0.00019,2]
[401249247,1768072245958,-500.0,0.00019,5]
[401249249,1768072245968,-500.0,0.00019,2]
[401249251,1768072245977,-500.0,0.00019,2]
[401249253,1768072245986,-500.0,0.00019,5]